{"text_format":"3","workbook":"xlsx","n_sheets":4,"sheets":["Panel","Presupuesto","Configuración","Datos del gráfico"],"not_rendered":{"charts":2,"images":1,"defined_names":42},"read":"whole","date_system":"1900"}

{"sheet":"Panel","index":0,"n_rows":13,"n_cols":14,"rows_kept":13,"merged":[[2,0,4,2],[6,0,8,2],[10,0,12,2]]}
[{"$nulls":13},{"$f":"\"PRESUPUESTO INTERACTIVO \"&Nombre_de_presupuesto","v":"PRESUPUESTO INTERACTIVO FAMILIA BERMEJO 2012"}]
[]
[{"$f":"'Datos del gráfico'!C38","v":{"v":4000,"d":"4,000 €"}}]
[]
[{"$nulls":3},"ingresos"]
[]
[{"$f":"'Datos del gráfico'!C39","v":{"v":5933,"d":"5,933 €"}}]
[]
[{"$nulls":3},"gastos"]
[]
[{"$f":"'Datos del gráfico'!D40 &'Datos del gráfico'!C40&\" €\"","v":"-1933 €"}]
[]
[{"$nulls":3},"flujo de efectivo"]

{"sheet":"Presupuesto","index":1,"n_rows":131,"n_cols":16,"rows_kept":131,"merged":[[18,1,18,13],[27,1,27,13],[36,1,36,13],[45,1,45,13],[54,1,54,13],[61,1,61,13],[68,1,68,13],[75,1,75,13],[82,1,82,13],[89,1,89,13],[96,1,96,13],[103,1,103,13],[110,1,110,13],[117,1,117,13],[124,1,124,13]]}
[null,null,"ene","feb","mar","abr","may","jun","jul","ago","sep","oct","nov","dic","año","media"]
[]
[]
[]
[null,"Saldo inicial",1000]
[null,"Ingresos totales",{"$f":"SUM(tbl_Ingresos[ene])","v":4222},{"$f":"SUM(tbl_Ingresos[feb])","v":9033},{"$f":"SUM(tbl_Ingresos[mar])","v":4000},{"$f":"SUM(tbl_Ingresos[abr])","v":4045},{"$f":"SUM(tbl_Ingresos[may])","v":9000},{"$f":"SUM(tbl_Ingresos[jun])","v":1525},{"$f":"SUM(tbl_Ingresos[jul])","v":1500},{"$f":"SUM(tbl_Ingresos[ago])","v":6500},{"$f":"SUM(tbl_Ingresos[sep])","v":4000},{"$f":"SUM(tbl_Ingresos[oct])","v":4000},{"$f":"SUM(tbl_Ingresos[nov])","v":9000},{"$f":"SUM(tbl_Ingresos[dic])","v":4000},{"$f":"SUM(tbl_Ingresos[año])","v":60825},{"$f":"O6/12","v":{"v":5068.75,"d":"5069"}}]
[null,"Gastos totales",{"$f":"SUM(tbl_Categoría_de_gastos_01[ene],tbl_Categoría_de_gastos_02[ene],tbl_Categoría_de_gastos_03[ene],tbl_Categoría_de_gastos_04[ene],tbl_Categoría_de_gastos_05[ene],tbl_Categoría_de_gastos_06[ene],tbl_Categoría_de_gastos_07[ene],tbl_Categoría_de_gastos_08[ene],tbl_Categoría_de_gastos_09[ene],tbl_Categoría_de_gastos_10[ene],tbl_Categoría_de_gastos_11[ene],tbl_Categoría_de_gastos_12[ene],tbl_Categoría_de_gastos_13[ene],tbl_Categoría_de_gastos_14[ene],tbl_Categoría_de_gastos_15[ene])","v":7936},{"$f":"SUM(tbl_Categoría_de_gastos_01[feb],tbl_Categoría_de_gastos_02[feb],tbl_Categoría_de_gastos_03[feb],tbl_Categoría_de_gastos_04[feb],tbl_Categoría_de_gastos_05[feb],tbl_Categoría_de_gastos_06[feb],tbl_Categoría_de_gastos_07[feb],tbl_Categoría_de_gastos_08[feb],tbl_Categoría_de_gastos_09[feb],tbl_Categoría_de_gastos_10[feb],tbl_Categoría_de_gastos_11[feb],tbl_Categoría_de_gastos_12[feb],tbl_Categoría_de_gastos_13[feb],tbl_Categoría_de_gastos_14[feb],tbl_Categoría_de_gastos_15[feb])","v":5243},{"$f":"SUM(tbl_Categoría_de_gastos_01[mar],tbl_Categoría_de_gastos_02[mar],tbl_Categoría_de_gastos_03[mar],tbl_Categoría_de_gastos_04[mar],tbl_Categoría_de_gastos_05[mar],tbl_Categoría_de_gastos_06[mar],tbl_Categoría_de_gastos_07[mar],tbl_Categoría_de_gastos_08[mar],tbl_Categoría_de_gastos_09[mar],tbl_Categoría_de_gastos_10[mar],tbl_Categoría_de_gastos_11[mar],tbl_Categoría_de_gastos_12[mar],tbl_Categoría_de_gastos_13[mar],tbl_Categoría_de_gastos_14[mar],tbl_Categoría_de_gastos_15[mar])","v":5933},{"$f":"SUM(tbl_Categoría_de_gastos_01[abr],tbl_Categoría_de_gastos_02[abr],tbl_Categoría_de_gastos_03[abr],tbl_Categoría_de_gastos_04[abr],tbl_Categoría_de_gastos_05[abr],tbl_Categoría_de_gastos_06[abr],tbl_Categoría_de_gastos_07[abr],tbl_Categoría_de_gastos_08[abr],tbl_Categoría_de_gastos_09[abr],tbl_Categoría_de_gastos_10[abr],tbl_Categoría_de_gastos_11[abr],tbl_Categoría_de_gastos_12[abr],tbl_Categoría_de_gastos_13[abr],tbl_Categoría_de_gastos_14[abr],tbl_Categoría_de_gastos_15[abr])","v":5858},{"$f":"SUM(tbl_Categoría_de_gastos_01[may],tbl_Categoría_de_gastos_02[may],tbl_Categoría_de_gastos_03[may],tbl_Categoría_de_gastos_04[may],tbl_Categoría_de_gastos_05[may],tbl_Categoría_de_gastos_06[may],tbl_Categoría_de_gastos_07[may],tbl_Categoría_de_gastos_08[may],tbl_Categoría_de_gastos_09[may],tbl_Categoría_de_gastos_10[may],tbl_Categoría_de_gastos_11[may],tbl_Categoría_de_gastos_12[may],tbl_Categoría_de_gastos_13[may],tbl_Categoría_de_gastos_14[may],tbl_Categoría_de_gastos_15[may])","v":5468},{"$f":"SUM(tbl_Categoría_de_gastos_01[jun],tbl_Categoría_de_gastos_02[jun],tbl_Categoría_de_gastos_03[jun],tbl_Categoría_de_gastos_04[jun],tbl_Categoría_de_gastos_05[jun],tbl_Categoría_de_gastos_06[jun],tbl_Categoría_de_gastos_07[jun],tbl_Categoría_de_gastos_08[jun],tbl_Categoría_de_gastos_09[jun],tbl_Categoría_de_gastos_10[jun],tbl_Categoría_de_gastos_11[jun],tbl_Categoría_de_gastos_12[jun],tbl_Categoría_de_gastos_13[jun],tbl_Categoría_de_gastos_14[jun],tbl_Categoría_de_gastos_15[jun])","v":5118},{"$f":"SUM(tbl_Categoría_de_gastos_01[jul],tbl_Categoría_de_gastos_02[jul],tbl_Categoría_de_gastos_03[jul],tbl_Categoría_de_gastos_04[jul],tbl_Categoría_de_gastos_05[jul],tbl_Categoría_de_gastos_06[jul],tbl_Categoría_de_gastos_07[jul],tbl_Categoría_de_gastos_08[jul],tbl_Categoría_de_gastos_09[jul],tbl_Categoría_de_gastos_10[jul],tbl_Categoría_de_gastos_11[jul],tbl_Categoría_de_gastos_12[jul],tbl_Categoría_de_gastos_13[jul],tbl_Categoría_de_gastos_14[jul],tbl_Categoría_de_gastos_15[jul])","v":5743},{"$f":"SUM(tbl_Categoría_de_gastos_01[ago],tbl_Categoría_de_gastos_02[ago],tbl_Categoría_de_gastos_03[ago],tbl_Categoría_de_gastos_04[ago],tbl_Categoría_de_gastos_05[ago],tbl_Categoría_de_gastos_06[ago],tbl_Categoría_de_gastos_07[ago],tbl_Categoría_de_gastos_08[ago],tbl_Categoría_de_gastos_09[ago],tbl_Categoría_de_gastos_10[ago],tbl_Categoría_de_gastos_11[ago],tbl_Categoría_de_gastos_12[ago],tbl_Categoría_de_gastos_13[ago],tbl_Categoría_de_gastos_14[ago],tbl_Categoría_de_gastos_15[ago])","v":5353},{"$f":"SUM(tbl_Categoría_de_gastos_01[sep],tbl_Categoría_de_gastos_02[sep],tbl_Categoría_de_gastos_03[sep],tbl_Categoría_de_gastos_04[sep],tbl_Categoría_de_gastos_05[sep],tbl_Categoría_de_gastos_06[sep],tbl_Categoría_de_gastos_07[sep],tbl_Categoría_de_gastos_08[sep],tbl_Categoría_de_gastos_09[sep],tbl_Categoría_de_gastos_10[sep],tbl_Categoría_de_gastos_11[sep],tbl_Categoría_de_gastos_12[sep],tbl_Categoría_de_gastos_13[sep],tbl_Categoría_de_gastos_14[sep],tbl_Categoría_de_gastos_15[sep])","v":5983},{"$f":"SUM(tbl_Categoría_de_gastos_01[oct],tbl_Categoría_de_gastos_02[oct],tbl_Categoría_de_gastos_03[oct],tbl_Categoría_de_gastos_04[oct],tbl_Categoría_de_gastos_05[oct],tbl_Categoría_de_gastos_06[oct],tbl_Categoría_de_gastos_07[oct],tbl_Categoría_de_gastos_08[oct],tbl_Categoría_de_gastos_09[oct],tbl_Categoría_de_gastos_10[oct],tbl_Categoría_de_gastos_11[oct],tbl_Categoría_de_gastos_12[oct],tbl_Categoría_de_gastos_13[oct],tbl_Categoría_de_gastos_14[oct],tbl_Categoría_de_gastos_15[oct])","v":5943},{"$f":"SUM(tbl_Categoría_de_gastos_01[nov],tbl_Categoría_de_gastos_02[nov],tbl_Categoría_de_gastos_03[nov],tbl_Categoría_de_gastos_04[nov],tbl_Categoría_de_gastos_05[nov],tbl_Categoría_de_gastos_06[nov],tbl_Categoría_de_gastos_07[nov],tbl_Categoría_de_gastos_08[nov],tbl_Categoría_de_gastos_09[nov],tbl_Categoría_de_gastos_10[nov],tbl_Categoría_de_gastos_11[nov],tbl_Categoría_de_gastos_12[nov],tbl_Categoría_de_gastos_13[nov],tbl_Categoría_de_gastos_14[nov],tbl_Categoría_de_gastos_15[nov])","v":5058},{"$f":"SUM(tbl_Categoría_de_gastos_01[dic],tbl_Categoría_de_gastos_02[dic],tbl_Categoría_de_gastos_03[dic],tbl_Categoría_de_gastos_04[dic],tbl_Categoría_de_gastos_05[dic],tbl_Categoría_de_gastos_06[dic],tbl_Categoría_de_gastos_07[dic],tbl_Categoría_de_gastos_08[dic],tbl_Categoría_de_gastos_09[dic],tbl_Categoría_de_gastos_10[dic],tbl_Categoría_de_gastos_11[dic],tbl_Categoría_de_gastos_12[dic],tbl_Categoría_de_gastos_13[dic],tbl_Categoría_de_gastos_14[dic],tbl_Categoría_de_gastos_15[dic])","v":4958},{"$f":"SUM(tbl_Categoría_de_gastos_01[año],tbl_Categoría_de_gastos_02[año],tbl_Categoría_de_gastos_03[año],tbl_Categoría_de_gastos_04[año],tbl_Categoría_de_gastos_05[año],tbl_Categoría_de_gastos_06[año],tbl_Categoría_de_gastos_07[año],tbl_Categoría_de_gastos_08[año],tbl_Categoría_de_gastos_09[año],tbl_Categoría_de_gastos_10[año],tbl_Categoría_de_gastos_11[año],tbl_Categoría_de_gastos_12[año],tbl_Categoría_de_gastos_13[año],tbl_Categoría_de_gastos_14[año],tbl_Categoría_de_gastos_15[año])","v":68594},{"$f":"O7/12","v":{"v":5716.166666666667,"d":"5716"}}]
[null,"Ingresos netos",{"$f":"C6-C7","v":-3714},{"$f":"D6-D7","v":3790},{"$f":"E6-E7","v":-1933},-1813,3532,-3593,-4243,1147,-1983,-1943,3942,-958,{"$f":"O6-O7","v":-7769},{"$f":"O8/12","v":{"v":-647.4166666666666,"d":"-647"}}]
[null,"FLUJO DE EFECTIVO TOTAL",{"$f":"C5+C6-C7","v":-2714},{"$f":"C9+D6-D7","v":1076},{"$f":"D9+E6-E7","v":-857},-2670,862,-2731,-6974,-5827,-7810,-9753,-5811,-6769]
[]
[]
[null,"ingresos"]
[null,"Sueldos y propinas",4000,4000,4000,4000,4000,1000,1000,1000,4000,4000,4000,4000,{"$f":"SUM(tbl_Ingresos[[#This Row],[ene]:[dic]])","v":39000},{"$f":"tbl_Ingresos[[#This Row],[año]]/12","v":3250}]
[null,"Ingresos por intereses",222,33,null,45,null,25,{"$nulls":6},{"$f":"SUM(tbl_Ingresos[[#This Row],[ene]:[dic]])","v":325},{"$f":"tbl_Ingresos[[#This Row],[año]]/12","v":{"v":27.083333333333332,"d":"27"}}]
[null,"Dividendos",null,5000,null,null,5000,null,null,5000,null,null,5000,null,{"$f":"SUM(tbl_Ingresos[[#This Row],[ene]:[dic]])","v":20000},{"$f":"tbl_Ingresos[[#This Row],[año]]/12","v":{"v":1666.6666666666667,"d":"1667"}}]
[null,"reembolsos/devoluciones",{"$nulls":5},500,500,500,{"$nulls":4},{"$f":"SUM(tbl_Ingresos[[#This Row],[ene]:[dic]])","v":1500},{"$f":"tbl_Ingresos[[#This Row],[año]]/12","v":125}]
[null,"Otros",{"$nulls":12},{"$f":"SUM(tbl_Ingresos[[#This Row],[ene]:[dic]])","v":0},{"$f":"tbl_Ingresos[[#This Row],[año]]/12","v":0}]
[null,"INGRESOS TOTALES",{"$f":"SUM(tbl_Ingresos[ene])","v":4222},{"$f":"SUM(tbl_Ingresos[feb])","v":9033},{"$f":"SUM(tbl_Ingresos[mar])","v":4000},{"$f":"SUM(tbl_Ingresos[abr])","v":4045},{"$f":"SUM(tbl_Ingresos[may])","v":9000},{"$f":"SUM(tbl_Ingresos[jun])","v":1525},{"$f":"SUM(tbl_Ingresos[jul])","v":1500},{"$f":"SUM(tbl_Ingresos[ago])","v":6500},{"$f":"SUM(tbl_Ingresos[sep])","v":4000},{"$f":"SUM(tbl_Ingresos[oct])","v":4000},{"$f":"SUM(tbl_Ingresos[nov])","v":9000},{"$f":"SUM(tbl_Ingresos[dic])","v":4000},{"$f":"SUM(tbl_Ingresos[año])","v":60825},{"$f":"tbl_Ingresos[[#Totals],[año]]/12","v":{"v":5068.75,"d":"5069"}}]
[]
[]
[null,"gastos domésticos"]
[null,"Hipoteca/alquiler",850,850,850,850,850,850,850,850,850,850,900,900,{"$f":"SUM(tbl_Categoría_de_gastos_01[[#This Row],[ene]:[dic]])","v":10300},{"$f":"tbl_Categoría_de_gastos_01[[#This Row],[año]]/12","v":{"v":858.3333333333334,"d":"858"}}]
[null,"Electricidad",200,200,175,150,150,175,225,275,200,150,150,150,{"$f":"SUM(tbl_Categoría_de_gastos_01[[#This Row],[ene]:[dic]])","v":2200},{"$f":"tbl_Categoría_de_gastos_01[[#This Row],[año]]/12","v":{"v":183.33333333333334,"d":"183"}}]
[null,"Teléfono",50,50,100,100,50,50,100,100,50,50,50,50,{"$f":"SUM(tbl_Categoría_de_gastos_01[[#This Row],[ene]:[dic]])","v":800},{"$f":"tbl_Categoría_de_gastos_01[[#This Row],[año]]/12","v":{"v":66.66666666666667,"d":"67"}}]
[null,"Conexión por cable/vía satélite",69,69,69,69,69,69,69,69,69,69,69,69,{"$f":"SUM(tbl_Categoría_de_gastos_01[[#This Row],[ene]:[dic]])","v":828},{"$f":"tbl_Categoría_de_gastos_01[[#This Row],[año]]/12","v":69}]
[null,"Internet",39,39,39,39,39,39,39,39,39,39,39,39,{"$f":"SUM(tbl_Categoría_de_gastos_01[[#This Row],[ene]:[dic]])","v":468},{"$f":"tbl_Categoría_de_gastos_01[[#This Row],[año]]/12","v":39}]
[null,{"$f":"UPPER(\"Total \" & B21)","v":"TOTAL GASTOS DOMÉSTICOS"},{"$f":"SUM(tbl_Categoría_de_gastos_01[ene])","v":1208},{"$f":"SUM(tbl_Categoría_de_gastos_01[feb])","v":1208},{"$f":"SUM(tbl_Categoría_de_gastos_01[mar])","v":1233},{"$f":"SUM(tbl_Categoría_de_gastos_01[abr])","v":1208},{"$f":"SUM(tbl_Categoría_de_gastos_01[may])","v":1158},{"$f":"SUM(tbl_Categoría_de_gastos_01[jun])","v":1183},{"$f":"SUM(tbl_Categoría_de_gastos_01[jul])","v":1283},{"$f":"SUM(tbl_Categoría_de_gastos_01[ago])","v":1333},{"$f":"SUM(tbl_Categoría_de_gastos_01[sep])","v":1208},{"$f":"SUM(tbl_Categoría_de_gastos_01[oct])","v":1158},{"$f":"SUM(tbl_Categoría_de_gastos_01[nov])","v":1208},{"$f":"SUM(tbl_Categoría_de_gastos_01[dic])","v":1208},{"$f":"SUM(tbl_Categoría_de_gastos_01[año])","v":14596},{"$f":"tbl_Categoría_de_gastos_01[[#Totals],[año]]/12","v":{"v":1216.3333333333333,"d":"1216"}}]
[]
[]
[null,"gastos cotidianos"]
[null,"Comestibles",345,250,200,400,350,250,400,350,250,400,350,250,{"$f":"SUM(tbl_Categoría_de_gastos_02[[#This Row],[ene]:[dic]])","v":3795},{"$f":"tbl_Categoría_de_gastos_02[[#This Row],[año]]/12","v":{"v":316.25,"d":"316"}}]
[null,"Ropa",300,null,null,300,null,null,300,null,null,300,null,null,{"$f":"SUM(tbl_Categoría_de_gastos_02[[#This Row],[ene]:[dic]])","v":1200},{"$f":"tbl_Categoría_de_gastos_02[[#This Row],[año]]/12","v":100}]
[null,"Comidas fuera de casa",125,125,300,125,125,200,125,125,125,125,125,125,{"$f":"SUM(tbl_Categoría_de_gastos_02[[#This Row],[ene]:[dic]])","v":1750},{"$f":"tbl_Categoría_de_gastos_02[[#This Row],[año]]/12","v":{"v":145.83333333333334,"d":"146"}}]
[null,"Belleza/peluquería",25,null,50,null,25,null,50,null,25,null,100,null,{"$f":"SUM(tbl_Categoría_de_gastos_02[[#This Row],[ene]:[dic]])","v":275},{"$f":"tbl_Categoría_de_gastos_02[[#This Row],[año]]/12","v":{"v":22.916666666666668,"d":"23"}}]
[null,"Otros",{"$nulls":12},{"$f":"SUM(tbl_Categoría_de_gastos_02[[#This Row],[ene]:[dic]])","v":0},{"$f":"tbl_Categoría_de_gastos_02[[#This Row],[año]]/12","v":0}]
[null,{"$f":"UPPER(\"Total \" & B30)","v":"TOTAL GASTOS COTIDIANOS"},{"$f":"SUM(tbl_Categoría_de_gastos_02[ene])","v":795},{"$f":"SUM(tbl_Categoría_de_gastos_02[feb])","v":375},{"$f":"SUM(tbl_Categoría_de_gastos_02[mar])","v":550},{"$f":"SUM(tbl_Categoría_de_gastos_02[abr])","v":825},{"$f":"SUM(tbl_Categoría_de_gastos_02[may])","v":500},{"$f":"SUM(tbl_Categoría_de_gastos_02[jun])","v":450},{"$f":"SUM(tbl_Categoría_de_gastos_02[jul])","v":875},{"$f":"SUM(tbl_Categoría_de_gastos_02[ago])","v":475},{"$f":"SUM(tbl_Categoría_de_gastos_02[sep])","v":400},{"$f":"SUM(tbl_Categoría_de_gastos_02[oct])","v":825},{"$f":"SUM(tbl_Categoría_de_gastos_02[nov])","v":575},{"$f":"SUM(tbl_Categoría_de_gastos_02[dic])","v":375},{"$f":"SUM(tbl_Categoría_de_gastos_02[año])","v":7020},{"$f":"tbl_Categoría_de_gastos_02[[#Totals],[año]]/12","v":585}]
[]
[]
[null,"niños"]
[null,"Material escolar",123,null,100,{"$nulls":4},345,{"$nulls":4},{"$f":"SUM(tbl_Categoría_de_gastos_03[[#This Row],[ene]:[dic]])","v":568},{"$f":"tbl_Categoría_de_gastos_03[[#This Row],[año]]/12","v":{"v":47.333333333333336,"d":"47"}}]
[null,"Ropa",null,100,null,null,100,{"$nulls":3},100,null,null,100,{"$f":"SUM(tbl_Categoría_de_gastos_03[[#This Row],[ene]:[dic]])","v":400},{"$f":"tbl_Categoría_de_gastos_03[[#This Row],[año]]/12","v":{"v":33.333333333333336,"d":"33"}}]
[null,"Almuerzo escolar",50,50,50,50,50,50,null,null,50,50,50,50,{"$f":"SUM(tbl_Categoría_de_gastos_03[[#This Row],[ene]:[dic]])","v":500},{"$f":"tbl_Categoría_de_gastos_03[[#This Row],[año]]/12","v":{"v":41.666666666666664,"d":"42"}}]
[null,"Gastos médicos",200,200,200,200,200,200,200,200,200,200,200,200,{"$f":"SUM(tbl_Categoría_de_gastos_03[[#This Row],[ene]:[dic]])","v":2400},{"$f":"tbl_Categoría_de_gastos_03[[#This Row],[año]]/12","v":200}]
[null,"Otros",2000,150,{"$nulls":3},200,{"$nulls":3},100,null,null,{"$f":"SUM(tbl_Categoría_de_gastos_03[[#This Row],[ene]:[dic]])","v":2450},{"$f":"tbl_Categoría_de_gastos_03[[#This Row],[año]]/12","v":{"v":204.16666666666666,"d":"204"}}]
[null,{"$f":"UPPER(\"Total \" & B39)","v":"TOTAL NIÑOS"},{"$f":"SUM(tbl_Categoría_de_gastos_03[ene])","v":2373},{"$f":"SUM(tbl_Categoría_de_gastos_03[feb])","v":500},{"$f":"SUM(tbl_Categoría_de_gastos_03[mar])","v":350},{"$f":"SUM(tbl_Categoría_de_gastos_03[abr])","v":250},{"$f":"SUM(tbl_Categoría_de_gastos_03[may])","v":350},{"$f":"SUM(tbl_Categoría_de_gastos_03[jun])","v":450},{"$f":"SUM(tbl_Categoría_de_gastos_03[jul])","v":200},{"$f":"SUM(tbl_Categoría_de_gastos_03[ago])","v":545},{"$f":"SUM(tbl_Categoría_de_gastos_03[sep])","v":350},{"$f":"SUM(tbl_Categoría_de_gastos_03[oct])","v":350},{"$f":"SUM(tbl_Categoría_de_gastos_03[nov])","v":250},{"$f":"SUM(tbl_Categoría_de_gastos_03[dic])","v":350},{"$f":"SUM(tbl_Categoría_de_gastos_03[año])","v":6318},{"$f":"tbl_Categoría_de_gastos_03[[#Totals],[año]]/12","v":{"v":526.5,"d":"527"}}]
[]
[]
[null,"transporte"]
[null,"Cuotas de los vehículos",600,600,600,600,600,600,600,600,600,600,600,600,{"$f":"SUM(tbl_Categoría_de_gastos_04[[#This Row],[ene]:[dic]])","v":7200},{"$f":"tbl_Categoría_de_gastos_04[[#This Row],[año]]/12","v":600}]
[null,"Combustible",325,325,325,325,325,500,500,500,325,325,325,325,{"$f":"SUM(tbl_Categoría_de_gastos_04[[#This Row],[ene]:[dic]])","v":4425},{"$f":"tbl_Categoría_de_gastos_04[[#This Row],[año]]/12","v":{"v":368.75,"d":"369"}}]
[null,"Reparaciones",null,100,null,100,null,100,null,100,null,100,null,null,{"$f":"SUM(tbl_Categoría_de_gastos_04[[#This Row],[ene]:[dic]])","v":500},{"$f":"tbl_Categoría_de_gastos_04[[#This Row],[año]]/12","v":{"v":41.666666666666664,"d":"42"}}]
[null,"Registros/licencias",185,{"$nulls":7},225,{"$nulls":3},{"$f":"SUM(tbl_Categoría_de_gastos_04[[#This Row],[ene]:[dic]])","v":410},{"$f":"tbl_Categoría_de_gastos_04[[#This Row],[año]]/12","v":{"v":34.166666666666664,"d":"34"}}]
[null,"Otros",{"$nulls":4},400,{"$nulls":7},{"$f":"SUM(tbl_Categoría_de_gastos_04[[#This Row],[ene]:[dic]])","v":400},{"$f":"tbl_Categoría_de_gastos_04[[#This Row],[año]]/12","v":{"v":33.333333333333336,"d":"33"}}]
[null,{"$f":"UPPER(\"Total \" & B48)","v":"TOTAL TRANSPORTE"},{"$f":"SUM(tbl_Categoría_de_gastos_04[ene])","v":1110},{"$f":"SUM(tbl_Categoría_de_gastos_04[feb])","v":1025},{"$f":"SUM(tbl_Categoría_de_gastos_04[mar])","v":925},{"$f":"SUM(tbl_Categoría_de_gastos_04[abr])","v":1025},{"$f":"SUM(tbl_Categoría_de_gastos_04[may])","v":1325},{"$f":"SUM(tbl_Categoría_de_gastos_04[jun])","v":1200},{"$f":"SUM(tbl_Categoría_de_gastos_04[jul])","v":1100},{"$f":"SUM(tbl_Categoría_de_gastos_04[ago])","v":1200},{"$f":"SUM(tbl_Categoría_de_gastos_04[sep])","v":1150},{"$f":"SUM(tbl_Categoría_de_gastos_04[oct])","v":1025},{"$f":"SUM(tbl_Categoría_de_gastos_04[nov])","v":925},{"$f":"SUM(tbl_Categoría_de_gastos_04[dic])","v":925},{"$f":"SUM(tbl_Categoría_de_gastos_04[año])","v":12935},{"$f":"tbl_Categoría_de_gastos_04[[#Totals],[año]]/12","v":{"v":1077.9166666666667,"d":"1078"}}]
[]
[]
[null,"salud"]
[null,"Médico/dentista",null,35,null,null,35,35,35,null,null,35,null,null,{"$f":"SUM(tbl_Categoría_de_gastos_05[[#This Row],[ene]:[dic]])","v":175},{"$f":"tbl_Categoría_de_gastos_05[[#This Row],[año]]/12","v":{"v":14.583333333333334,"d":"15"}}]
[null,"Fármacos",25,25,25,25,25,25,25,25,25,25,25,25,{"$f":"SUM(tbl_Categoría_de_gastos_05[[#This Row],[ene]:[dic]])","v":300},{"$f":"tbl_Categoría_de_gastos_05[[#This Row],[año]]/12","v":25}]
[null,"Otros",null,null,150,{"$nulls":5},150,{"$nulls":3},{"$f":"SUM(tbl_Categoría_de_gastos_05[[#This Row],[ene]:[dic]])","v":300},{"$f":"tbl_Categoría_de_gastos_05[[#This Row],[año]]/12","v":25}]
[null,{"$f":"UPPER(\"Total \" & B57)","v":"TOTAL SALUD"},{"$f":"SUM(tbl_Categoría_de_gastos_05[ene])","v":25},{"$f":"SUM(tbl_Categoría_de_gastos_05[feb])","v":60},{"$f":"SUM(tbl_Categoría_de_gastos_05[mar])","v":175},{"$f":"SUM(tbl_Categoría_de_gastos_05[abr])","v":25},{"$f":"SUM(tbl_Categoría_de_gastos_05[may])","v":60},{"$f":"SUM(tbl_Categoría_de_gastos_05[jun])","v":60},{"$f":"SUM(tbl_Categoría_de_gastos_05[jul])","v":60},{"$f":"SUM(tbl_Categoría_de_gastos_05[ago])","v":25},{"$f":"SUM(tbl_Categoría_de_gastos_05[sep])","v":175},{"$f":"SUM(tbl_Categoría_de_gastos_05[oct])","v":60},{"$f":"SUM(tbl_Categoría_de_gastos_05[nov])","v":25},{"$f":"SUM(tbl_Categoría_de_gastos_05[dic])","v":25},{"$f":"SUM(tbl_Categoría_de_gastos_05[año])","v":775},{"$f":"tbl_Categoría_de_gastos_05[[#Totals],[año]]/12","v":{"v":64.58333333333333,"d":"65"}}]
[]
[]
[null,"seguros"]
[null,"Vehículos",150,150,150,150,150,150,150,150,150,150,150,150,{"$f":"SUM(tbl_Categoría_de_gastos_06[[#This Row],[ene]:[dic]])","v":1800},{"$f":"tbl_Categoría_de_gastos_06[[#This Row],[año]]/12","v":150}]
[null,"Salud",675,675,675,675,675,675,675,675,675,675,675,675,{"$f":"SUM(tbl_Categoría_de_gastos_06[[#This Row],[ene]:[dic]])","v":8100},{"$f":"tbl_Categoría_de_gastos_06[[#This Row],[año]]/12","v":675}]
[null,"Vida",150,150,150,150,150,150,150,150,150,150,150,150,{"$f":"SUM(tbl_Categoría_de_gastos_06[[#This Row],[ene]:[dic]])","v":1800},{"$f":"tbl_Categoría_de_gastos_06[[#This Row],[año]]/12","v":150}]
[null,{"$f":"UPPER(\"Total \" & B64)","v":"TOTAL SEGUROS"},{"$f":"SUM(tbl_Categoría_de_gastos_06[ene])","v":975},{"$f":"SUM(tbl_Categoría_de_gastos_06[feb])","v":975},{"$f":"SUM(tbl_Categoría_de_gastos_06[mar])","v":975},{"$f":"SUM(tbl_Categoría_de_gastos_06[abr])","v":975},{"$f":"SUM(tbl_Categoría_de_gastos_06[may])","v":975},{"$f":"SUM(tbl_Categoría_de_gastos_06[jun])","v":975},{"$f":"SUM(tbl_Categoría_de_gastos_06[jul])","v":975},{"$f":"SUM(tbl_Categoría_de_gastos_06[ago])","v":975},{"$f":"SUM(tbl_Categoría_de_gastos_06[sep])","v":975},{"$f":"SUM(tbl_Categoría_de_gastos_06[oct])","v":975},{"$f":"SUM(tbl_Categoría_de_gastos_06[nov])","v":975},{"$f":"SUM(tbl_Categoría_de_gastos_06[dic])","v":975},{"$f":"SUM(tbl_Categoría_de_gastos_06[año])","v":11700},{"$f":"tbl_Categoría_de_gastos_06[[#Totals],[año]]/12","v":975}]
[]
[]
[null,"educación"]
[null,"Matrícula",null,null,400,{"$nulls":5},400,{"$nulls":3},{"$f":"SUM(C72:N72)","v":800},{"$f":"tbl_Categoría_de_gastos_07[[#This Row],[año]]/12","v":{"v":66.66666666666667,"d":"67"}}]
[null,"Libros",null,null,225,{"$nulls":5},225,{"$nulls":3},{"$f":"SUM(C73:N73)","v":450},{"$f":"tbl_Categoría_de_gastos_07[[#This Row],[año]]/12","v":{"v":37.5,"d":"38"}}]
[null,"Otros",{"$nulls":12},0,{"$f":"tbl_Categoría_de_gastos_07[[#This Row],[año]]/12","v":0}]
[null,{"$f":"UPPER(\"Total \" & B71)","v":"TOTAL EDUCACIÓN"},{"$f":"SUM(tbl_Categoría_de_gastos_07[ene])","v":0},{"$f":"SUM(tbl_Categoría_de_gastos_07[feb])","v":0},{"$f":"SUM(tbl_Categoría_de_gastos_07[mar])","v":625},{"$f":"SUM(tbl_Categoría_de_gastos_07[abr])","v":0},{"$f":"SUM(tbl_Categoría_de_gastos_07[may])","v":0},{"$f":"SUM(tbl_Categoría_de_gastos_07[jun])","v":0},{"$f":"SUM(tbl_Categoría_de_gastos_07[jul])","v":0},{"$f":"SUM(tbl_Categoría_de_gastos_07[ago])","v":0},{"$f":"SUM(tbl_Categoría_de_gastos_07[sep])","v":625},{"$f":"SUM(tbl_Categoría_de_gastos_07[oct])","v":0},{"$f":"SUM(tbl_Categoría_de_gastos_07[nov])","v":0},{"$f":"SUM(tbl_Categoría_de_gastos_07[dic])","v":0},{"$f":"SUM(tbl_Categoría_de_gastos_07[año])","v":1250},{"$f":"tbl_Categoría_de_gastos_07[[#Totals],[año]]/12","v":{"v":104.16666666666667,"d":"104"}}]
[]
[]
[null,"caridad"]
[null,"Regalos realizados",null,100,{"$nulls":3},100,{"$nulls":3},100,null,null,{"$f":"SUM(tbl_Categoría_de_gastos_08[[#This Row],[ene]:[dic]])","v":300},{"$f":"tbl_Categoría_de_gastos_08[[#This Row],[año]]/12","v":25}]
[null,"Donaciones benéficas",null,null,100,null,100,null,100,null,100,null,100,null,{"$f":"SUM(tbl_Categoría_de_gastos_08[[#This Row],[ene]:[dic]])","v":500},{"$f":"tbl_Categoría_de_gastos_08[[#This Row],[año]]/12","v":{"v":41.666666666666664,"d":"42"}}]
[null,"Otros",{"$nulls":3},100,{"$nulls":3},100,{"$nulls":3},100,{"$f":"SUM(tbl_Categoría_de_gastos_08[[#This Row],[ene]:[dic]])","v":300},{"$f":"tbl_Categoría_de_gastos_08[[#This Row],[año]]/12","v":25}]
[null,{"$f":"UPPER(\"Total \" & B78)","v":"TOTAL CARIDAD"},{"$f":"SUM(tbl_Categoría_de_gastos_08[ene])","v":0},{"$f":"SUM(tbl_Categoría_de_gastos_08[feb])","v":100},{"$f":"SUM(tbl_Categoría_de_gastos_08[mar])","v":100},{"$f":"SUM(tbl_Categoría_de_gastos_08[abr])","v":100},{"$f":"SUM(tbl_Categoría_de_gastos_08[may])","v":100},{"$f":"SUM(tbl_Categoría_de_gastos_08[jun])","v":100},{"$f":"SUM(tbl_Categoría_de_gastos_08[jul])","v":100},{"$f":"SUM(tbl_Categoría_de_gastos_08[ago])","v":100},{"$f":"SUM(tbl_Categoría_de_gastos_08[sep])","v":100},{"$f":"SUM(tbl_Categoría_de_gastos_08[oct])","v":100},{"$f":"SUM(tbl_Categoría_de_gastos_08[nov])","v":100},{"$f":"SUM(tbl_Categoría_de_gastos_08[dic])","v":100},{"$f":"SUM(tbl_Categoría_de_gastos_08[año])","v":1100},{"$f":"tbl_Categoría_de_gastos_08[[#Totals],[año]]/12","v":{"v":91.66666666666667,"d":"92"}}]
[]
[]
[null,"ahorros"]
[null,"Fondo de emergencia",100,100,100,100,100,{"$nulls":3},100,100,100,100,{"$f":"SUM(tbl_Categoría_de_gastos_09[[#This Row],[ene]:[dic]])","v":900},{"$f":"tbl_Categoría_de_gastos_09[[#This Row],[año]]/12","v":75}]
[null,"Jubilación (plan 401k, cuenta individual)",500,500,500,500,500,500,500,500,500,500,500,500,{"$f":"SUM(tbl_Categoría_de_gastos_09[[#This Row],[ene]:[dic]])","v":6000},{"$f":"tbl_Categoría_de_gastos_09[[#This Row],[año]]/12","v":500}]
[null,"Transferencias a Ahorros",200,200,200,200,200,{"$nulls":3},200,200,200,200,{"$f":"SUM(tbl_Categoría_de_gastos_09[[#This Row],[ene]:[dic]])","v":1800},{"$f":"tbl_Categoría_de_gastos_09[[#This Row],[año]]/12","v":150}]
[null,{"$f":"UPPER(\"Total \" & B85)","v":"TOTAL AHORROS"},{"$f":"SUM(tbl_Categoría_de_gastos_09[ene])","v":800},{"$f":"SUM(tbl_Categoría_de_gastos_09[feb])","v":800},{"$f":"SUM(tbl_Categoría_de_gastos_09[mar])","v":800},{"$f":"SUM(tbl_Categoría_de_gastos_09[abr])","v":800},{"$f":"SUM(tbl_Categoría_de_gastos_09[may])","v":800},{"$f":"SUM(tbl_Categoría_de_gastos_09[jun])","v":500},{"$f":"SUM(tbl_Categoría_de_gastos_09[jul])","v":500},{"$f":"SUM(tbl_Categoría_de_gastos_09[ago])","v":500},{"$f":"SUM(tbl_Categoría_de_gastos_09[sep])","v":800},{"$f":"SUM(tbl_Categoría_de_gastos_09[oct])","v":800},{"$f":"SUM(tbl_Categoría_de_gastos_09[nov])","v":800},{"$f":"SUM(tbl_Categoría_de_gastos_09[dic])","v":800},{"$f":"SUM(tbl_Categoría_de_gastos_09[año])","v":8700},{"$f":"tbl_Categoría_de_gastos_09[[#Totals],[año]]/12","v":725}]
[]
[]
[null,"obligaciones"]
[null,"Tarjeta de crédito 1",145,145,145,145,145,145,145,145,145,145,145,145,{"$f":"SUM(tbl_Categoría_de_gastos_10[[#This Row],[ene]:[dic]])","v":1740},{"$f":"tbl_Categoría_de_gastos_10[[#This Row],[año]]/12","v":145}]
[null,"Impuestos federales",450,null,null,450,null,null,450,null,null,450,null,null,{"$f":"SUM(tbl_Categoría_de_gastos_10[[#This Row],[ene]:[dic]])","v":1800},{"$f":"tbl_Categoría_de_gastos_10[[#This Row],[año]]/12","v":150}]
[null,"Préstamo de estudios",55,55,55,55,55,55,55,55,55,55,55,55,{"$f":"SUM(tbl_Categoría_de_gastos_10[[#This Row],[ene]:[dic]])","v":660},{"$f":"tbl_Categoría_de_gastos_10[[#This Row],[año]]/12","v":55}]
[null,{"$f":"UPPER(\"Total \" & B92)","v":"TOTAL OBLIGACIONES"},{"$f":"SUM(tbl_Categoría_de_gastos_10[ene])","v":650},{"$f":"SUM(tbl_Categoría_de_gastos_10[feb])","v":200},{"$f":"SUM(tbl_Categoría_de_gastos_10[mar])","v":200},{"$f":"SUM(tbl_Categoría_de_gastos_10[abr])","v":650},{"$f":"SUM(tbl_Categoría_de_gastos_10[may])","v":200},{"$f":"SUM(tbl_Categoría_de_gastos_10[jun])","v":200},{"$f":"SUM(tbl_Categoría_de_gastos_10[jul])","v":650},{"$f":"SUM(tbl_Categoría_de_gastos_10[ago])","v":200},{"$f":"SUM(tbl_Categoría_de_gastos_10[sep])","v":200},{"$f":"SUM(tbl_Categoría_de_gastos_10[oct])","v":650},{"$f":"SUM(tbl_Categoría_de_gastos_10[nov])","v":200},{"$f":"SUM(tbl_Categoría_de_gastos_10[dic])","v":200},{"$f":"SUM(tbl_Categoría_de_gastos_10[año])","v":4200},{"$f":"tbl_Categoría_de_gastos_10[[#Totals],[año]]/12","v":350}]
[]
[]
[null," "]
[{"$nulls":14},{"$f":"SUM(tbl_Categoría_de_gastos_11[[#This Row],[ene]:[dic]])","v":0},{"$f":"tbl_Categoría_de_gastos_11[[#This Row],[año]]/12","v":0}]
[{"$nulls":14},{"$f":"SUM(tbl_Categoría_de_gastos_11[[#This Row],[ene]:[dic]])","v":0},{"$f":"tbl_Categoría_de_gastos_11[[#This Row],[año]]/12","v":0}]
[{"$nulls":14},{"$f":"SUM(tbl_Categoría_de_gastos_11[[#This Row],[ene]:[dic]])","v":0},{"$f":"tbl_Categoría_de_gastos_11[[#This Row],[año]]/12","v":0}]
[null,{"$f":"UPPER(\"Total \" & B99)","v":"TOTAL  "},{"$f":"SUM(tbl_Categoría_de_gastos_11[ene])","v":0},{"$f":"SUM(tbl_Categoría_de_gastos_11[feb])","v":0},{"$f":"SUM(tbl_Categoría_de_gastos_11[mar])","v":0},{"$f":"SUM(tbl_Categoría_de_gastos_11[abr])","v":0},{"$f":"SUM(tbl_Categoría_de_gastos_11[may])","v":0},{"$f":"SUM(tbl_Categoría_de_gastos_11[jun])","v":0},{"$f":"SUM(tbl_Categoría_de_gastos_11[jul])","v":0},{"$f":"SUM(tbl_Categoría_de_gastos_11[ago])","v":0},{"$f":"SUM(tbl_Categoría_de_gastos_11[sep])","v":0},{"$f":"SUM(tbl_Categoría_de_gastos_11[oct])","v":0},{"$f":"SUM(tbl_Categoría_de_gastos_11[nov])","v":0},{"$f":"SUM(tbl_Categoría_de_gastos_11[dic])","v":0},{"$f":"SUM(tbl_Categoría_de_gastos_11[año])","v":0},{"$f":"tbl_Categoría_de_gastos_11[[#Totals],[año]]/12","v":0}]
[]
[]
[null," "]
[{"$nulls":14},{"$f":"SUM(tbl_Categoría_de_gastos_12[[#This Row],[ene]:[dic]])","v":0},{"$f":"tbl_Categoría_de_gastos_12[[#This Row],[año]]/12","v":0}]
[{"$nulls":14},{"$f":"SUM(tbl_Categoría_de_gastos_12[[#This Row],[ene]:[dic]])","v":0},{"$f":"tbl_Categoría_de_gastos_12[[#This Row],[año]]/12","v":0}]
[{"$nulls":14},{"$f":"SUM(tbl_Categoría_de_gastos_12[[#This Row],[ene]:[dic]])","v":0},{"$f":"tbl_Categoría_de_gastos_12[[#This Row],[año]]/12","v":0}]
[null,{"$f":"UPPER(\"Total \" & B106)","v":"TOTAL  "},{"$f":"SUM(tbl_Categoría_de_gastos_12[ene])","v":0},{"$f":"SUM(tbl_Categoría_de_gastos_12[feb])","v":0},{"$f":"SUM(tbl_Categoría_de_gastos_12[mar])","v":0},{"$f":"SUM(tbl_Categoría_de_gastos_12[abr])","v":0},{"$f":"SUM(tbl_Categoría_de_gastos_12[may])","v":0},{"$f":"SUM(tbl_Categoría_de_gastos_12[jun])","v":0},{"$f":"SUM(tbl_Categoría_de_gastos_12[jul])","v":0},{"$f":"SUM(tbl_Categoría_de_gastos_12[ago])","v":0},{"$f":"SUM(tbl_Categoría_de_gastos_12[sep])","v":0},{"$f":"SUM(tbl_Categoría_de_gastos_12[oct])","v":0},{"$f":"SUM(tbl_Categoría_de_gastos_12[nov])","v":0},{"$f":"SUM(tbl_Categoría_de_gastos_12[dic])","v":0},{"$f":"SUM(tbl_Categoría_de_gastos_12[año])","v":0},{"$f":"tbl_Categoría_de_gastos_12[[#Totals],[año]]/12","v":0}]
[]
[]
[null," "]
[{"$nulls":14},{"$f":"SUM(tbl_Categoría_de_gastos_13[[#This Row],[ene]:[dic]])","v":0},{"$f":"tbl_Categoría_de_gastos_13[[#This Row],[año]]/12","v":0}]
[{"$nulls":14},{"$f":"SUM(tbl_Categoría_de_gastos_13[[#This Row],[ene]:[dic]])","v":0},{"$f":"tbl_Categoría_de_gastos_13[[#This Row],[año]]/12","v":0}]
[{"$nulls":14},{"$f":"SUM(tbl_Categoría_de_gastos_13[[#This Row],[ene]:[dic]])","v":0},{"$f":"tbl_Categoría_de_gastos_13[[#This Row],[año]]/12","v":0}]
[null,{"$f":"UPPER(\"Total \" & B113)","v":"TOTAL  "},{"$f":"SUM(tbl_Categoría_de_gastos_13[ene])","v":0},{"$f":"SUM(tbl_Categoría_de_gastos_13[feb])","v":0},{"$f":"SUM(tbl_Categoría_de_gastos_13[mar])","v":0},{"$f":"SUM(tbl_Categoría_de_gastos_13[abr])","v":0},{"$f":"SUM(tbl_Categoría_de_gastos_13[may])","v":0},{"$f":"SUM(tbl_Categoría_de_gastos_13[jun])","v":0},{"$f":"SUM(tbl_Categoría_de_gastos_13[jul])","v":0},{"$f":"SUM(tbl_Categoría_de_gastos_13[ago])","v":0},{"$f":"SUM(tbl_Categoría_de_gastos_13[sep])","v":0},{"$f":"SUM(tbl_Categoría_de_gastos_13[oct])","v":0},{"$f":"SUM(tbl_Categoría_de_gastos_13[nov])","v":0},{"$f":"SUM(tbl_Categoría_de_gastos_13[dic])","v":0},{"$f":"SUM(tbl_Categoría_de_gastos_13[año])","v":0},{"$f":"tbl_Categoría_de_gastos_13[[#Totals],[año]]/12","v":0}]
[]
[]
[null," "]
[{"$nulls":14},{"$f":"SUM(tbl_Categoría_de_gastos_14[[#This Row],[ene]:[dic]])","v":0},{"$f":"tbl_Categoría_de_gastos_14[[#This Row],[año]]/12","v":0}]
[{"$nulls":14},{"$f":"SUM(tbl_Categoría_de_gastos_14[[#This Row],[ene]:[dic]])","v":0},{"$f":"tbl_Categoría_de_gastos_14[[#This Row],[año]]/12","v":0}]
[{"$nulls":14},{"$f":"SUM(tbl_Categoría_de_gastos_14[[#This Row],[ene]:[dic]])","v":0},{"$f":"tbl_Categoría_de_gastos_14[[#This Row],[año]]/12","v":0}]
[null,{"$f":"UPPER(\"Total \" & B120)","v":"TOTAL  "},{"$f":"SUM(tbl_Categoría_de_gastos_14[ene])","v":0},{"$f":"SUM(tbl_Categoría_de_gastos_14[feb])","v":0},{"$f":"SUM(tbl_Categoría_de_gastos_14[mar])","v":0},{"$f":"SUM(tbl_Categoría_de_gastos_14[abr])","v":0},{"$f":"SUM(tbl_Categoría_de_gastos_14[may])","v":0},{"$f":"SUM(tbl_Categoría_de_gastos_14[jun])","v":0},{"$f":"SUM(tbl_Categoría_de_gastos_14[jul])","v":0},{"$f":"SUM(tbl_Categoría_de_gastos_14[ago])","v":0},{"$f":"SUM(tbl_Categoría_de_gastos_14[sep])","v":0},{"$f":"SUM(tbl_Categoría_de_gastos_14[oct])","v":0},{"$f":"SUM(tbl_Categoría_de_gastos_14[nov])","v":0},{"$f":"SUM(tbl_Categoría_de_gastos_14[dic])","v":0},{"$f":"SUM(tbl_Categoría_de_gastos_14[año])","v":0},{"$f":"tbl_Categoría_de_gastos_14[[#Totals],[año]]/12","v":0}]
[]
[]
[null," "]
[{"$nulls":14},{"$f":"SUM(tbl_Categoría_de_gastos_15[[#This Row],[ene]:[dic]])","v":0},{"$f":"tbl_Categoría_de_gastos_15[[#This Row],[año]]/12","v":0}]
[{"$nulls":14},{"$f":"SUM(tbl_Categoría_de_gastos_15[[#This Row],[ene]:[dic]])","v":0},{"$f":"tbl_Categoría_de_gastos_15[[#This Row],[año]]/12","v":0}]
[{"$nulls":14},{"$f":"SUM(tbl_Categoría_de_gastos_15[[#This Row],[ene]:[dic]])","v":0},{"$f":"tbl_Categoría_de_gastos_15[[#This Row],[año]]/12","v":0}]
[null,{"$f":"UPPER(\"Total \" & B127)","v":"TOTAL  "},{"$f":"SUM(tbl_Categoría_de_gastos_15[ene])","v":0},{"$f":"SUM(tbl_Categoría_de_gastos_15[feb])","v":0},{"$f":"SUM(tbl_Categoría_de_gastos_15[mar])","v":0},{"$f":"SUM(tbl_Categoría_de_gastos_15[abr])","v":0},{"$f":"SUM(tbl_Categoría_de_gastos_15[may])","v":0},{"$f":"SUM(tbl_Categoría_de_gastos_15[jun])","v":0},{"$f":"SUM(tbl_Categoría_de_gastos_15[jul])","v":0},{"$f":"SUM(tbl_Categoría_de_gastos_15[ago])","v":0},{"$f":"SUM(tbl_Categoría_de_gastos_15[sep])","v":0},{"$f":"SUM(tbl_Categoría_de_gastos_15[oct])","v":0},{"$f":"SUM(tbl_Categoría_de_gastos_15[nov])","v":0},{"$f":"SUM(tbl_Categoría_de_gastos_15[dic])","v":0},{"$f":"SUM(tbl_Categoría_de_gastos_15[año])","v":0},{"$f":"tbl_Categoría_de_gastos_15[[#Totals],[año]]/12","v":0}]

{"sheet":"Configuración","index":2,"n_rows":59,"n_cols":10,"rows_kept":59}
[null,"FAMILIA BERMEJO 2012"]
[null,"ingresos",null,"gastos"]
[null,"sueldos y propinas",null," "]
[null,"ingresos por intereses",null,"gastos domésticos",null,"gastos domésticos",null,"gastos cotidianos",null,"niños"]
[null,"dividendos",null,"gastos cotidianos",null,"hipoteca/alquiler",null,"comestibles",null,"gastos médicos"]
[null,"regalos recibidos",null,"niños",null,"electricidad",null,"suministros personales",null,"ropa"]
[null,"reembolsos/devoluciones",null,"transporte",null,"combustible",null,"ropa",null,"matrícula escolar"]
[null,"transferencias de ahorros",null,"salud",null,"agua/alcantarillado/basura",null,"servicios de limpieza",null,"almuerzo escolar"]
[null,"otros",null,"seguros",null,"teléfono",null,"comidas fuera de casa",null,"material escolar"]
[{"$nulls":3},"educación",null,"conexión por cable/vía satélite",null,"tintorería",null,"servicio de canguro"]
[{"$nulls":3},"caridad",null,"internet",null,"belleza/peluquería",null,"juguetes/juegos"]
[{"$nulls":3},"ahorros",null,"mobiliario/electrodomésticos",null,"otros",null,"otros"]
[{"$nulls":3},"obligaciones",null,"césped/jardín"]
[{"$nulls":3},"entretenimiento",null,"consumibles domésticos"]
[{"$nulls":3},"mascotas",null,"mantenimiento"]
[{"$nulls":3},"suscripciones",null,"mejoras"]
[{"$nulls":3},"vacaciones",null,"otros"]
[{"$nulls":3},"varios"]
[]
[{"$nulls":5},"transporte",null,"salud",null,"seguros"]
[{"$nulls":5},"cuotas de los vehículos",null,"médico/dentista",null,"automóvil"]
[{"$nulls":5},"combustible",null,"fármacos",null,"salud"]
[{"$nulls":5},"gastos de autobús/taxi/tren",null,"cuotas del gimnasio",null,"hogar/alquiler"]
[{"$nulls":5},"reparaciones",null,"emergencias",null,"vida"]
[{"$nulls":5},"registros/licencias",null,"otros",null,"otros"]
[{"$nulls":5},"otros"]
[]
[]
[{"$nulls":5},"educación",null,"caridad",null,"ahorros"]
[{"$nulls":5},"matrícula",null,"regalos realizados",null,"fondo de emergencia"]
[{"$nulls":5},"libros",null,"donaciones benéficas",null,"transferencias a ahorros"]
[{"$nulls":5},"clases de música",null,"donaciones religiosas",null,"jubilación (plan 401k, cuenta individual)"]
[{"$nulls":5},"otros",null,"otros",null,"inversiones"]
[{"$nulls":9},"universidad"]
[{"$nulls":9},"otros"]
[]
[]
[{"$nulls":5},"obligaciones",null,"entretenimiento",null,"mascotas"]
[{"$nulls":5},"préstamo de estudios",null,"vídeos/dvd",null,"alimentación"]
[{"$nulls":5},"otros préstamos",null,"música",null,"gastos médicos"]
[{"$nulls":5},"tarjeta de crédito 1",null,"juegos",null,"juguetes/consumibles"]
[{"$nulls":5},"tarjeta de crédito 2",null,"alquileres",null,"otros"]
[{"$nulls":5},"tarjeta de crédito 3",null,"cine/teatro"]
[{"$nulls":5},"pensión alimenticia/ayuda familiar",null,"conciertos/representaciones"]
[{"$nulls":5},"impuestos federales",null,"libros"]
[{"$nulls":5},"impuesto sobre bienes inmuebles",null,"hobbies"]
[{"$nulls":5},"impuestos estatales/locales",null,"material fílmico/fotográfico"]
[{"$nulls":5},"cuotas de la hoa",null,"deportes"]
[{"$nulls":5},"gastos jurídicos",null,"entretenimiento fuera de casa"]
[{"$nulls":5},"otros",null,"juguetes/gadgets"]
[{"$nulls":7},"otros"]
[]
[{"$nulls":5},"suscripciones",null,"vacaciones",null,"varios"]
[{"$nulls":5},"periódicos",null,"viajes",null,"cuotas bancarias"]
[{"$nulls":5},"revistas",null,"alojamiento",null,"envíos"]
[{"$nulls":5},"cuotas",null,"alimentación",null,"otros"]
[{"$nulls":5},"pertenencia a clubes",null,"coche de alquiler"]
[{"$nulls":5},"otros",null,"entretenimiento"]
[{"$nulls":7},"otros"]

{"sheet":"Datos del gráfico","index":3,"n_rows":40,"n_cols":16,"rows_kept":40,"hidden":true}
[null,"*** Esta hoja debe permanecer oculta ***"]
[]
[]
[null,"Período",3]
[]
[null,null,"ene","feb","mar","abr","may","jun","jul","ago","sep","oct","nov","dic","año","Media"]
[null,{"$f":"LOWER(Presupuesto!B127)","v":" "},{"$f":"SUM(tbl_Categoría_de_gastos_15[ene])","v":0},{"$f":"SUM(tbl_Categoría_de_gastos_15[feb])","v":0},{"$f":"SUM(tbl_Categoría_de_gastos_15[mar])","v":0},{"$f":"SUM(tbl_Categoría_de_gastos_15[abr])","v":0},{"$f":"SUM(tbl_Categoría_de_gastos_15[may])","v":0},{"$f":"SUM(tbl_Categoría_de_gastos_15[jun])","v":0},{"$f":"SUM(tbl_Categoría_de_gastos_15[jul])","v":0},{"$f":"SUM(tbl_Categoría_de_gastos_15[ago])","v":0},{"$f":"SUM(tbl_Categoría_de_gastos_15[sep])","v":0},{"$f":"SUM(tbl_Categoría_de_gastos_15[oct])","v":0},{"$f":"SUM(tbl_Categoría_de_gastos_15[nov])","v":0},{"$f":"SUM(tbl_Categoría_de_gastos_15[dic])","v":0},{"$f":"SUM(tbl_Categoría_de_gastos_15[año])","v":0},{"$f":"SUM(tbl_Categoría_de_gastos_15[media])","v":0}]
[null,{"$f":"LOWER(Presupuesto!B120)","v":" "},{"$f":"SUM(tbl_Categoría_de_gastos_14[ene])","v":0},{"$f":"SUM(tbl_Categoría_de_gastos_14[feb])","v":0},{"$f":"SUM(tbl_Categoría_de_gastos_14[mar])","v":0},{"$f":"SUM(tbl_Categoría_de_gastos_14[abr])","v":0},{"$f":"SUM(tbl_Categoría_de_gastos_14[may])","v":0},{"$f":"SUM(tbl_Categoría_de_gastos_14[jun])","v":0},{"$f":"SUM(tbl_Categoría_de_gastos_14[jul])","v":0},{"$f":"SUM(tbl_Categoría_de_gastos_14[ago])","v":0},{"$f":"SUM(tbl_Categoría_de_gastos_14[sep])","v":0},{"$f":"SUM(tbl_Categoría_de_gastos_14[oct])","v":0},{"$f":"SUM(tbl_Categoría_de_gastos_14[nov])","v":0},{"$f":"SUM(tbl_Categoría_de_gastos_14[dic])","v":0},{"$f":"SUM(tbl_Categoría_de_gastos_14[año])","v":0},{"$f":"SUM(tbl_Categoría_de_gastos_14[media])","v":0}]
[null,{"$f":"LOWER(Presupuesto!B113)","v":" "},{"$f":"SUM(tbl_Categoría_de_gastos_13[ene])","v":0},{"$f":"SUM(tbl_Categoría_de_gastos_13[feb])","v":0},{"$f":"SUM(tbl_Categoría_de_gastos_13[mar])","v":0},{"$f":"SUM(tbl_Categoría_de_gastos_13[abr])","v":0},{"$f":"SUM(tbl_Categoría_de_gastos_13[may])","v":0},{"$f":"SUM(tbl_Categoría_de_gastos_13[jun])","v":0},{"$f":"SUM(tbl_Categoría_de_gastos_13[jul])","v":0},{"$f":"SUM(tbl_Categoría_de_gastos_13[ago])","v":0},{"$f":"SUM(tbl_Categoría_de_gastos_13[sep])","v":0},{"$f":"SUM(tbl_Categoría_de_gastos_13[oct])","v":0},{"$f":"SUM(tbl_Categoría_de_gastos_13[nov])","v":0},{"$f":"SUM(tbl_Categoría_de_gastos_13[dic])","v":0},{"$f":"SUM(tbl_Categoría_de_gastos_13[año])","v":0},{"$f":"SUM(tbl_Categoría_de_gastos_13[media])","v":0}]
[null,{"$f":"LOWER(Presupuesto!B106)","v":" "},{"$f":"SUM(tbl_Categoría_de_gastos_12[ene])","v":0},{"$f":"SUM(tbl_Categoría_de_gastos_12[feb])","v":0},{"$f":"SUM(tbl_Categoría_de_gastos_12[mar])","v":0},{"$f":"SUM(tbl_Categoría_de_gastos_12[abr])","v":0},{"$f":"SUM(tbl_Categoría_de_gastos_12[may])","v":0},{"$f":"SUM(tbl_Categoría_de_gastos_12[jun])","v":0},{"$f":"SUM(tbl_Categoría_de_gastos_12[jul])","v":0},{"$f":"SUM(tbl_Categoría_de_gastos_12[ago])","v":0},{"$f":"SUM(tbl_Categoría_de_gastos_12[sep])","v":0},{"$f":"SUM(tbl_Categoría_de_gastos_12[oct])","v":0},{"$f":"SUM(tbl_Categoría_de_gastos_12[nov])","v":0},{"$f":"SUM(tbl_Categoría_de_gastos_12[dic])","v":0},{"$f":"SUM(tbl_Categoría_de_gastos_12[año])","v":0},{"$f":"SUM(tbl_Categoría_de_gastos_12[media])","v":0}]
[null,{"$f":"LOWER(Presupuesto!B99)","v":" "},{"$f":"SUM(tbl_Categoría_de_gastos_11[ene])","v":0},{"$f":"SUM(tbl_Categoría_de_gastos_11[feb])","v":0},{"$f":"SUM(tbl_Categoría_de_gastos_11[mar])","v":0},{"$f":"SUM(tbl_Categoría_de_gastos_11[abr])","v":0},{"$f":"SUM(tbl_Categoría_de_gastos_11[may])","v":0},{"$f":"SUM(tbl_Categoría_de_gastos_11[jun])","v":0},{"$f":"SUM(tbl_Categoría_de_gastos_11[jul])","v":0},{"$f":"SUM(tbl_Categoría_de_gastos_11[ago])","v":0},{"$f":"SUM(tbl_Categoría_de_gastos_11[sep])","v":0},{"$f":"SUM(tbl_Categoría_de_gastos_11[oct])","v":0},{"$f":"SUM(tbl_Categoría_de_gastos_11[nov])","v":0},{"$f":"SUM(tbl_Categoría_de_gastos_11[dic])","v":0},{"$f":"SUM(tbl_Categoría_de_gastos_11[año])","v":0},{"$f":"SUM(tbl_Categoría_de_gastos_11[media])","v":0}]
[null,{"$f":"LOWER(Presupuesto!B92)","v":"obligaciones"},{"$f":"SUM(tbl_Categoría_de_gastos_10[ene])","v":650},{"$f":"SUM(tbl_Categoría_de_gastos_10[feb])","v":200},{"$f":"SUM(tbl_Categoría_de_gastos_10[mar])","v":200},{"$f":"SUM(tbl_Categoría_de_gastos_10[abr])","v":650},{"$f":"SUM(tbl_Categoría_de_gastos_10[may])","v":200},{"$f":"SUM(tbl_Categoría_de_gastos_10[jun])","v":200},{"$f":"SUM(tbl_Categoría_de_gastos_10[jul])","v":650},{"$f":"SUM(tbl_Categoría_de_gastos_10[ago])","v":200},{"$f":"SUM(tbl_Categoría_de_gastos_10[sep])","v":200},{"$f":"SUM(tbl_Categoría_de_gastos_10[oct])","v":650},{"$f":"SUM(tbl_Categoría_de_gastos_10[nov])","v":200},{"$f":"SUM(tbl_Categoría_de_gastos_10[dic])","v":200},{"$f":"SUM(tbl_Categoría_de_gastos_10[año])","v":{"v":4200,"d":"4,200"}},{"$f":"SUM(tbl_Categoría_de_gastos_10[media])","v":350}]
[null,{"$f":"LOWER(Presupuesto!B85)","v":"ahorros"},{"$f":"SUM(tbl_Categoría_de_gastos_09[ene])","v":800},{"$f":"SUM(tbl_Categoría_de_gastos_09[feb])","v":800},{"$f":"SUM(tbl_Categoría_de_gastos_09[mar])","v":800},{"$f":"SUM(tbl_Categoría_de_gastos_09[abr])","v":800},{"$f":"SUM(tbl_Categoría_de_gastos_09[may])","v":800},{"$f":"SUM(tbl_Categoría_de_gastos_09[jun])","v":500},{"$f":"SUM(tbl_Categoría_de_gastos_09[jul])","v":500},{"$f":"SUM(tbl_Categoría_de_gastos_09[ago])","v":500},{"$f":"SUM(tbl_Categoría_de_gastos_09[sep])","v":800},{"$f":"SUM(tbl_Categoría_de_gastos_09[oct])","v":800},{"$f":"SUM(tbl_Categoría_de_gastos_09[nov])","v":800},{"$f":"SUM(tbl_Categoría_de_gastos_09[dic])","v":800},{"$f":"SUM(tbl_Categoría_de_gastos_09[año])","v":{"v":8700,"d":"8,700"}},{"$f":"SUM(tbl_Categoría_de_gastos_09[media])","v":725}]
[null,{"$f":"LOWER(Presupuesto!B78)","v":"caridad"},{"$f":"SUM(tbl_Categoría_de_gastos_08[ene])","v":0},{"$f":"SUM(tbl_Categoría_de_gastos_08[feb])","v":100},{"$f":"SUM(tbl_Categoría_de_gastos_08[mar])","v":100},{"$f":"SUM(tbl_Categoría_de_gastos_08[abr])","v":100},{"$f":"SUM(tbl_Categoría_de_gastos_08[may])","v":100},{"$f":"SUM(tbl_Categoría_de_gastos_08[jun])","v":100},{"$f":"SUM(tbl_Categoría_de_gastos_08[jul])","v":100},{"$f":"SUM(tbl_Categoría_de_gastos_08[ago])","v":100},{"$f":"SUM(tbl_Categoría_de_gastos_08[sep])","v":100},{"$f":"SUM(tbl_Categoría_de_gastos_08[oct])","v":100},{"$f":"SUM(tbl_Categoría_de_gastos_08[nov])","v":100},{"$f":"SUM(tbl_Categoría_de_gastos_08[dic])","v":100},{"$f":"SUM(tbl_Categoría_de_gastos_08[año])","v":{"v":1100,"d":"1,100"}},{"$f":"SUM(tbl_Categoría_de_gastos_08[media])","v":{"v":91.66666666666666,"d":"92"}}]
[null,{"$f":"LOWER(Presupuesto!B71)","v":"educación"},{"$f":"SUM(tbl_Categoría_de_gastos_07[ene])","v":0},{"$f":"SUM(tbl_Categoría_de_gastos_07[feb])","v":0},{"$f":"SUM(tbl_Categoría_de_gastos_07[mar])","v":625},{"$f":"SUM(tbl_Categoría_de_gastos_07[abr])","v":0},{"$f":"SUM(tbl_Categoría_de_gastos_07[may])","v":0},{"$f":"SUM(tbl_Categoría_de_gastos_07[jun])","v":0},{"$f":"SUM(tbl_Categoría_de_gastos_07[jul])","v":0},{"$f":"SUM(tbl_Categoría_de_gastos_07[ago])","v":0},{"$f":"SUM(tbl_Categoría_de_gastos_07[sep])","v":625},{"$f":"SUM(tbl_Categoría_de_gastos_07[oct])","v":0},{"$f":"SUM(tbl_Categoría_de_gastos_07[nov])","v":0},{"$f":"SUM(tbl_Categoría_de_gastos_07[dic])","v":0},{"$f":"SUM(tbl_Categoría_de_gastos_07[año])","v":{"v":1250,"d":"1,250"}},{"$f":"SUM(tbl_Categoría_de_gastos_07[media])","v":{"v":104.16666666666667,"d":"104"}}]
[null,{"$f":"LOWER(Presupuesto!B64)","v":"seguros"},{"$f":"SUM(tbl_Categoría_de_gastos_06[ene])","v":975},{"$f":"SUM(tbl_Categoría_de_gastos_06[feb])","v":975},{"$f":"SUM(tbl_Categoría_de_gastos_06[mar])","v":975},{"$f":"SUM(tbl_Categoría_de_gastos_06[abr])","v":975},{"$f":"SUM(tbl_Categoría_de_gastos_06[may])","v":975},{"$f":"SUM(tbl_Categoría_de_gastos_06[jun])","v":975},{"$f":"SUM(tbl_Categoría_de_gastos_06[jul])","v":975},{"$f":"SUM(tbl_Categoría_de_gastos_06[ago])","v":975},{"$f":"SUM(tbl_Categoría_de_gastos_06[sep])","v":975},{"$f":"SUM(tbl_Categoría_de_gastos_06[oct])","v":975},{"$f":"SUM(tbl_Categoría_de_gastos_06[nov])","v":975},{"$f":"SUM(tbl_Categoría_de_gastos_06[dic])","v":975},{"$f":"SUM(tbl_Categoría_de_gastos_06[año])","v":{"v":11700,"d":"11,700"}},{"$f":"SUM(tbl_Categoría_de_gastos_06[media])","v":975}]
[null,{"$f":"LOWER(Presupuesto!B57)","v":"salud"},{"$f":"SUM(tbl_Categoría_de_gastos_05[ene])","v":25},{"$f":"SUM(tbl_Categoría_de_gastos_05[feb])","v":60},{"$f":"SUM(tbl_Categoría_de_gastos_05[mar])","v":175},{"$f":"SUM(tbl_Categoría_de_gastos_05[abr])","v":25},{"$f":"SUM(tbl_Categoría_de_gastos_05[may])","v":60},{"$f":"SUM(tbl_Categoría_de_gastos_05[jun])","v":60},{"$f":"SUM(tbl_Categoría_de_gastos_05[jul])","v":60},{"$f":"SUM(tbl_Categoría_de_gastos_05[ago])","v":25},{"$f":"SUM(tbl_Categoría_de_gastos_05[sep])","v":175},{"$f":"SUM(tbl_Categoría_de_gastos_05[oct])","v":60},{"$f":"SUM(tbl_Categoría_de_gastos_05[nov])","v":25},{"$f":"SUM(tbl_Categoría_de_gastos_05[dic])","v":25},{"$f":"SUM(tbl_Categoría_de_gastos_05[año])","v":775},{"$f":"SUM(tbl_Categoría_de_gastos_05[media])","v":{"v":64.58333333333334,"d":"65"}}]
[null,{"$f":"LOWER(Presupuesto!B48)","v":"transporte"},{"$f":"SUM(tbl_Categoría_de_gastos_04[ene])","v":{"v":1110,"d":"1,110"}},{"$f":"SUM(tbl_Categoría_de_gastos_04[feb])","v":{"v":1025,"d":"1,025"}},{"$f":"SUM(tbl_Categoría_de_gastos_04[mar])","v":925},{"$f":"SUM(tbl_Categoría_de_gastos_04[abr])","v":{"v":1025,"d":"1,025"}},{"$f":"SUM(tbl_Categoría_de_gastos_04[may])","v":{"v":1325,"d":"1,325"}},{"$f":"SUM(tbl_Categoría_de_gastos_04[jun])","v":{"v":1200,"d":"1,200"}},{"$f":"SUM(tbl_Categoría_de_gastos_04[jul])","v":{"v":1100,"d":"1,100"}},{"$f":"SUM(tbl_Categoría_de_gastos_04[ago])","v":{"v":1200,"d":"1,200"}},{"$f":"SUM(tbl_Categoría_de_gastos_04[sep])","v":{"v":1150,"d":"1,150"}},{"$f":"SUM(tbl_Categoría_de_gastos_04[oct])","v":{"v":1025,"d":"1,025"}},{"$f":"SUM(tbl_Categoría_de_gastos_04[nov])","v":925},{"$f":"SUM(tbl_Categoría_de_gastos_04[dic])","v":925},{"$f":"SUM(tbl_Categoría_de_gastos_04[año])","v":{"v":12935,"d":"12,935"}},{"$f":"SUM(tbl_Categoría_de_gastos_04[media])","v":{"v":1077.9166666666665,"d":"1,078"}}]
[null,{"$f":"LOWER(Presupuesto!B39)","v":"niños"},{"$f":"SUM(tbl_Categoría_de_gastos_03[ene])","v":{"v":2373,"d":"2,373"}},{"$f":"SUM(tbl_Categoría_de_gastos_03[feb])","v":500},{"$f":"SUM(tbl_Categoría_de_gastos_03[mar])","v":350},{"$f":"SUM(tbl_Categoría_de_gastos_03[abr])","v":250},{"$f":"SUM(tbl_Categoría_de_gastos_03[may])","v":350},{"$f":"SUM(tbl_Categoría_de_gastos_03[jun])","v":450},{"$f":"SUM(tbl_Categoría_de_gastos_03[jul])","v":200},{"$f":"SUM(tbl_Categoría_de_gastos_03[ago])","v":545},{"$f":"SUM(tbl_Categoría_de_gastos_03[sep])","v":350},{"$f":"SUM(tbl_Categoría_de_gastos_03[oct])","v":350},{"$f":"SUM(tbl_Categoría_de_gastos_03[nov])","v":250},{"$f":"SUM(tbl_Categoría_de_gastos_03[dic])","v":350},{"$f":"SUM(tbl_Categoría_de_gastos_03[año])","v":{"v":6318,"d":"6,318"}},{"$f":"SUM(tbl_Categoría_de_gastos_03[media])","v":{"v":526.5,"d":"527"}}]
[null,{"$f":"LOWER(Presupuesto!B30)","v":"gastos cotidianos"},{"$f":"SUM(tbl_Categoría_de_gastos_02[ene])","v":795},{"$f":"SUM(tbl_Categoría_de_gastos_02[feb])","v":375},{"$f":"SUM(tbl_Categoría_de_gastos_02[mar])","v":550},{"$f":"SUM(tbl_Categoría_de_gastos_02[abr])","v":825},{"$f":"SUM(tbl_Categoría_de_gastos_02[may])","v":500},{"$f":"SUM(tbl_Categoría_de_gastos_02[jun])","v":450},{"$f":"SUM(tbl_Categoría_de_gastos_02[jul])","v":875},{"$f":"SUM(tbl_Categoría_de_gastos_02[ago])","v":475},{"$f":"SUM(tbl_Categoría_de_gastos_02[sep])","v":400},{"$f":"SUM(tbl_Categoría_de_gastos_02[oct])","v":825},{"$f":"SUM(tbl_Categoría_de_gastos_02[nov])","v":575},{"$f":"SUM(tbl_Categoría_de_gastos_02[dic])","v":375},{"$f":"SUM(tbl_Categoría_de_gastos_02[año])","v":{"v":7020,"d":"7,020"}},{"$f":"SUM(tbl_Categoría_de_gastos_02[media])","v":585}]
[null,{"$f":"LOWER(Presupuesto!B21)","v":"gastos domésticos"},{"$f":"SUM(tbl_Categoría_de_gastos_01[ene])","v":{"v":1208,"d":"1,208"}},{"$f":"SUM(tbl_Categoría_de_gastos_01[feb])","v":{"v":1208,"d":"1,208"}},{"$f":"SUM(tbl_Categoría_de_gastos_01[mar])","v":{"v":1233,"d":"1,233"}},{"$f":"SUM(tbl_Categoría_de_gastos_01[abr])","v":{"v":1208,"d":"1,208"}},{"$f":"SUM(tbl_Categoría_de_gastos_01[may])","v":{"v":1158,"d":"1,158"}},{"$f":"SUM(tbl_Categoría_de_gastos_01[jun])","v":{"v":1183,"d":"1,183"}},{"$f":"SUM(tbl_Categoría_de_gastos_01[jul])","v":{"v":1283,"d":"1,283"}},{"$f":"SUM(tbl_Categoría_de_gastos_01[ago])","v":{"v":1333,"d":"1,333"}},{"$f":"SUM(tbl_Categoría_de_gastos_01[sep])","v":{"v":1208,"d":"1,208"}},{"$f":"SUM(tbl_Categoría_de_gastos_01[oct])","v":{"v":1158,"d":"1,158"}},{"$f":"SUM(tbl_Categoría_de_gastos_01[nov])","v":{"v":1208,"d":"1,208"}},{"$f":"SUM(tbl_Categoría_de_gastos_01[dic])","v":{"v":1208,"d":"1,208"}},{"$f":"SUM(tbl_Categoría_de_gastos_01[año])","v":{"v":14596,"d":"14,596"}},{"$f":"SUM(tbl_Categoría_de_gastos_01[media])","v":{"v":1216.3333333333335,"d":"1,216"}}]
[]
[]
[]
[]
[null,"Flujo de efectivo acumulado",{"$f":"SUM(Presupuesto!$C$8:C$8)","v":{"v":-3714,"d":"-3,714"}},{"$f":"SUM(Presupuesto!$C$8:D$8)","v":76},{"$f":"SUM(Presupuesto!$C$8:E$8)","v":{"v":-1857,"d":"-1,857"}},{"$f":"SUM(Presupuesto!$C$8:F$8)","v":{"v":-3670,"d":"-3,670"}},{"$f":"SUM(Presupuesto!$C$8:G$8)","v":-138},{"$f":"SUM(Presupuesto!$C$8:H$8)","v":{"v":-3731,"d":"-3,731"}},{"$f":"SUM(Presupuesto!$C$8:I$8)","v":{"v":-7974,"d":"-7,974"}},{"$f":"SUM(Presupuesto!$C$8:J$8)","v":{"v":-6827,"d":"-6,827"}},{"$f":"SUM(Presupuesto!$C$8:K$8)","v":{"v":-8810,"d":"-8,810"}},{"$f":"SUM(Presupuesto!$C$8:L$8)","v":{"v":-10753,"d":"-10,753"}},{"$f":"SUM(Presupuesto!$C$8:M$8)","v":{"v":-6811,"d":"-6,811"}},{"$f":"SUM(Presupuesto!$C$8:N$8)","v":{"v":-7769,"d":"-7,769"}},{"$f":"SUM(Presupuesto!$C$8:O$8)","v":{"v":-15538,"d":"-15,538"}}]
[]
[null,"Flujo de efectivo positivo anual",{"$f":"IF(Presupuesto!C$8<0,NA(),IF(período+2<>COLUMN(Presupuesto!C$8),NA(),Presupuesto!C$8))","v":{"$error":"#N/A"}},{"$f":"IF(Presupuesto!D$8<0,NA(),IF(período+2<>COLUMN(Presupuesto!D$8),NA(),Presupuesto!D$8))","v":{"$error":"#N/A"}},{"$f":"IF(Presupuesto!E$8<0,NA(),IF(período+2<>COLUMN(Presupuesto!E$8),NA(),Presupuesto!E$8))","v":{"$error":"#N/A"}},{"$f":"IF(Presupuesto!F$8<0,NA(),IF(período+2<>COLUMN(Presupuesto!F$8),NA(),Presupuesto!F$8))","v":{"$error":"#N/A"}},{"$f":"IF(Presupuesto!G$8<0,NA(),IF(período+2<>COLUMN(Presupuesto!G$8),NA(),Presupuesto!G$8))","v":{"$error":"#N/A"}},{"$f":"IF(Presupuesto!H$8<0,NA(),IF(período+2<>COLUMN(Presupuesto!H$8),NA(),Presupuesto!H$8))","v":{"$error":"#N/A"}},{"$f":"IF(Presupuesto!I$8<0,NA(),IF(período+2<>COLUMN(Presupuesto!I$8),NA(),Presupuesto!I$8))","v":{"$error":"#N/A"}},{"$f":"IF(Presupuesto!J$8<0,NA(),IF(período+2<>COLUMN(Presupuesto!J$8),NA(),Presupuesto!J$8))","v":{"$error":"#N/A"}},{"$f":"IF(Presupuesto!K$8<0,NA(),IF(período+2<>COLUMN(Presupuesto!K$8),NA(),Presupuesto!K$8))","v":{"$error":"#N/A"}},{"$f":"IF(Presupuesto!L$8<0,NA(),IF(período+2<>COLUMN(Presupuesto!L$8),NA(),Presupuesto!L$8))","v":{"$error":"#N/A"}},{"$f":"IF(Presupuesto!M$8<0,NA(),IF(período+2<>COLUMN(Presupuesto!M$8),NA(),Presupuesto!M$8))","v":{"$error":"#N/A"}},{"$f":"IF(Presupuesto!N$8<0,NA(),IF(período+2<>COLUMN(Presupuesto!N$8),NA(),Presupuesto!N$8))","v":{"$error":"#N/A"}},{"$f":"IF(Presupuesto!O$8<0,NA(),IF(período+2<>COLUMN(Presupuesto!O$8),NA(),Presupuesto!O$8))","v":{"$error":"#N/A"}}]
[null,"Flujo de efectivo negativo anual",{"$f":"IF(Presupuesto!C$8>=0,NA(),IF(período+2<>COLUMN(Presupuesto!C$8),NA(),Presupuesto!C$8))","v":{"$error":"#N/A"}},{"$f":"IF(Presupuesto!D$8>=0,NA(),IF(período+2<>COLUMN(Presupuesto!D$8),NA(),Presupuesto!D$8))","v":{"$error":"#N/A"}},{"$f":"IF(Presupuesto!E$8>=0,NA(),IF(período+2<>COLUMN(Presupuesto!E$8),NA(),Presupuesto!E$8))","v":{"v":-1933,"d":"-1,933"}},{"$f":"IF(Presupuesto!F$8>=0,NA(),IF(período+2<>COLUMN(Presupuesto!F$8),NA(),Presupuesto!F$8))","v":{"$error":"#N/A"}},{"$f":"IF(Presupuesto!G$8>=0,NA(),IF(período+2<>COLUMN(Presupuesto!G$8),NA(),Presupuesto!G$8))","v":{"$error":"#N/A"}},{"$f":"IF(Presupuesto!H$8>=0,NA(),IF(período+2<>COLUMN(Presupuesto!H$8),NA(),Presupuesto!H$8))","v":{"$error":"#N/A"}},{"$f":"IF(Presupuesto!I$8>=0,NA(),IF(período+2<>COLUMN(Presupuesto!I$8),NA(),Presupuesto!I$8))","v":{"$error":"#N/A"}},{"$f":"IF(Presupuesto!J$8>=0,NA(),IF(período+2<>COLUMN(Presupuesto!J$8),NA(),Presupuesto!J$8))","v":{"$error":"#N/A"}},{"$f":"IF(Presupuesto!K$8>=0,NA(),IF(período+2<>COLUMN(Presupuesto!K$8),NA(),Presupuesto!K$8))","v":{"$error":"#N/A"}},{"$f":"IF(Presupuesto!L$8>=0,NA(),IF(período+2<>COLUMN(Presupuesto!L$8),NA(),Presupuesto!L$8))","v":{"$error":"#N/A"}},{"$f":"IF(Presupuesto!M$8>=0,NA(),IF(período+2<>COLUMN(Presupuesto!M$8),NA(),Presupuesto!M$8))","v":{"$error":"#N/A"}},{"$f":"IF(Presupuesto!N$8>=0,NA(),IF(período+2<>COLUMN(Presupuesto!N$8),NA(),Presupuesto!N$8))","v":{"$error":"#N/A"}},{"$f":"IF(Presupuesto!O$8>=0,NA(),IF(período+2<>COLUMN(Presupuesto!O$8),NA(),Presupuesto!O$8))","v":{"$error":"#N/A"}}]
{"$rows_empty":7}
[null,{"$f":"LOWER(mostrar_período_largo)","v":"marzo"}]
[null,{"$f":" \"Ingresos de \"& mostrar_período_largo","v":"Ingresos de marzo"},{"$f":"INDEX(Presupuesto!$C$6:$P$6,,período)","v":{"v":4000,"d":"4,000 €"}}]
[null,{"$f":"\"Gastos de \" & mostrar_período_largo&\": \" & TEXT(INDEX(Presupuesto!$C$7:$P$7,,período),\"#.##0 €\")","v":"Gastos de marzo: 5.933 €"},{"$f":"INDEX(Presupuesto!$C$7:$P$7,,período)","v":{"v":5933,"d":"5,933 €"}}]
[null,{"$f":"\"Flujo de caja de \"& mostrar_período_largo","v":"Flujo de caja de marzo"},{"$f":"ABS(INDEX(Presupuesto!$C$8:$P$8,,período))","v":{"v":1933,"d":"1,933 €"}},{"$f":"REPT(\"-\",INDEX(Presupuesto!$C$8:$P$8,,período)<0)","v":"-"}]